{"text_format":"1","workbook":"xlsx","n_sheets":13,"sheets":["Forsíða","Matshluti","Hæðir","Einingar","Sameign_sumra","Eignarhald","Samantekt","Athugasemdir","Hlutfallstölur","Hlutfall_hita","Lýsing","Breytingarsaga","Stillingar"],"not_rendered":{"charts":0,"images":0,"macros":1,"external_links":0,"defined_names":1,"comments":0,"pivot_tables":0},"unopened":[],"bounds":{"document_bytes":16777216,"sheet_cells":100000,"rows_first":2000,"rows_last":500,"rows_between":2000,"halvings":0,"cell_chars":16384,"cell_head_chars":4096},"cells_cut":0,"cells_raw":0,"read":"whole","date_system":"1900"}

{"sheet":"Forsíða","index":0,"n_rows":22,"n_cols":10,"rows_kept":22,"cut":false,"hidden":false,"merged":[[11,1,12,2]]}
[null,null,null,null,null,null,null,null,null,{"$f":"IF( Breytingarsaga!A2=\"\",IF(Breytingarsaga!A3=\"\",\"\",\"Breytingar\"),\"Breytingar\")","v":""}]
[]
[null,"Byggingu skjal að jafnaði skrá sem einn matshluta.  Undantekning frá þeirri reglu er þegar byggingarfræðileg rök mæla með sjálfstæðri skráningu"]
[null,"s.s. burðarvirki eða byggingarlag, enda geti hún staðið sjálfstæð samkvæmt ákvæðum byggingarreglugerðar."]
[]
[null,null,null,"Skráningartafla:"]
[]
[null,null,null,"Landeignanúmer:",null,null,null,"Staðgreinir:"]
[null,null,null,"Matshlutanúmer:"]
[null,null,null,"Fjöldi matshluta á landeign:"]
[null,null,null,"Skrásetjari:"]
[null,null,null,"Kennitala:"]
[null,null,null,"Dags.:"]
[null,"ATH. Að villutékka vinnublað í einingar áður en það er reiknað",null,null,null,null,null,"Brúttóflötur:",null,"m²"]
[null,null,null,null,null,null,null,"Brúttó rúmmál:",null,"m³"]
[null,"Leiðbeiningar"]
[]
[null,null,null,null,null,null,null,"Birt flatarmál:",null,"m²"]
[null,null,null,null,null,null,null,"Skiptarúmmál:",null,"m³"]
[]
["Útgáfa: 5.03"]
["© 2023 Húsnæðis- og mannvirkjastofnun, Borgartúni 21, 105 Reykjavík."]

{"sheet":"Matshluti","index":1,"n_rows":25,"n_cols":11,"rows_kept":25,"cut":false,"hidden":false,"merged":[[24,1,24,4],[23,1,23,4],[18,1,18,2],[19,1,19,2],[21,1,22,10],[16,1,16,2],[13,1,13,2],[11,1,11,2],[12,1,12,2],[14,1,14,2],[15,1,15,2]]}
[null,{"$f":"+Forsíða!D6","v":"Skráningartafla:"},{"$f":"Forsíða!E6","v":0},null,null,null,{"$f":"+Forsíða!D11","v":"Skrásetjari:"},{"$f":"+Forsíða!E11","v":0},null,{"$f":"IF( Breytingarsaga!A2=\"\",IF(Breytingarsaga!A3=\"\",\"\",\"Breytingar\"),\"Breytingar\")","v":""}]
[null,{"$f":"+Forsíða!D8","v":"Landeignanúmer:"},{"$f":"Forsíða!E8","v":0},null,null,null,{"$f":"+Forsíða!D12","v":"Kennitala:"},{"$f":"+Forsíða!E12","v":0}]
[null,{"$f":"+Forsíða!D9","v":"Matshlutanúmer:"},{"$f":"Forsíða!E9","v":0},null,null,{"$f":"Forsíða!A21","v":"Útgáfa: 5.03"},{"$f":"+Forsíða!D13","v":"Dags.:"},{"$f":"+Forsíða!E13","v":"00:00:00"}]
[null,null,"Botnplata",null,"Hjúpfletir"]
[null,null,null,null,null,"Þar af:",null,"Þar af:"]
[null,"Lóð m²","Botnplata\nm³","Botnplata\nm²","Útveggir\nm²","Glugga- og\ndyraop m²","Þak\nm²","Þakgluggar og\nþakop m²","Efsti hæðarkóti","Ummál ofanjarðar"]
[]
["Matshluti"]
[]
[]
[]
[null,"Yfirlit",null,"D5 Botnflötur m²","D5M milliflötur m²","D7 op m²","D8 Brúttóflötur m² með V og F","D9 Brúttóflötur undir 1,8 m með V og F","D11 Brúttórúmmál m³","D12 Nettóflötur m²","D13 birt flatarmál m²"]
[null,"A rými"]
[null,"Svalir A lokun"]
[null,"B rými"]
[null,"C rými"]
[null,"Fylgirými (F)"]
[null,"Afgangsrými (V)"]
[null,"Botnplata"]
[null,"Samtals:",null,{"$f":"SUM(D13:D19)","v":0},0,0,0,0,0,0,0]
[]
[null,"Flatarmál nýtingarhlutfalls er A rými + B rými, undanskilið er brúttóflatarmál rýma með salarhæð lægri en 1,8 m, samkvæmt skipulagsreglugerð 2013 (breyting var gerð 2016).  Notkun rýma hefur ekki áhrif á útreikning nýtingarhlutfalls."]
[]
[null,null,null,null,null,"m²","Lóð m²","Hlutfall "]
[null,"Flatarmál til útreiknings nýtingarhlutfalls ",null,null,null,{"$f":"G20-H20","v":0},{"$f":"B8","v":0},{"$f":"IF(G25=0,0,F25/G25)","v":0}]

{"sheet":"Hæðir","index":2,"n_rows":12,"n_cols":10,"rows_kept":12,"cut":false,"hidden":false,"merged":[]}
[null,{"$f":"+Forsíða!D6","v":"Skráningartafla:"},{"$f":"Forsíða!E6","v":0},null,null,null,{"$f":"+Forsíða!D11","v":"Skrásetjari:"},{"$f":"+Forsíða!E11","v":0},null,{"$f":"IF( Breytingarsaga!A2=\"\",IF(Breytingarsaga!A3=\"\",\"\",\"Breytingar\"),\"Breytingar\")","v":""}]
[null,{"$f":"+Forsíða!D8","v":"Landeignanúmer:"},{"$f":"Forsíða!E8","v":0},null,null,null,{"$f":"+Forsíða!D12","v":"Kennitala:"},{"$f":"+Forsíða!E12","v":0}]
[null,{"$f":"+Forsíða!D9","v":"Matshlutanúmer:"},{"$f":"Forsíða!E9","v":0},null,null,{"$f":"Forsíða!A21","v":"Útgáfa: 5.03"},{"$f":"+Forsíða!D13","v":"Dags.:"},{"$f":"+Forsíða!E13","v":"00:00:00"}]
["Hæðir",null,"Samanburðarstærðir"]
[null,null,"D5","D11"]
["\nHæð","\nTexti","Botnflötur\nm²","Brúttó\nrúmmál m³"]
[]
["  ","Matshluti"]
["00","Kjallari"]
["01","1. hæð"]
["02","2. hæð"]
["03","3. hæð"]

{"sheet":"Einingar","index":3,"n_rows":6,"n_cols":29,"rows_kept":6,"cut":false,"hidden":false,"merged":[]}
[null,{"$f":"+Forsíða!D6","v":"Skráningartafla:"},{"$f":"Forsíða!E6","v":0},null,null,null,{"$f":"+Forsíða!D11","v":"Skrásetjari:"},{"$f":"+Forsíða!E11","v":0},null,{"$f":"IF( Breytingarsaga!A2=\"\",IF(Breytingarsaga!A3=\"\",\"\",\"Breytingar\"),\"Breytingar\")","v":""},null,null,null,null,null,false]
[null,{"$f":"+Forsíða!D8","v":"Landeignanúmer:"},{"$f":"Forsíða!E8","v":0},null,null,null,{"$f":"+Forsíða!D12","v":"Kennitala:"},{"$f":"+Forsíða!E12","v":0}]
[null,{"$f":"+Forsíða!D9","v":"Matshlutanúmer:"},{"$f":"Forsíða!E9","v":0},null,null,{"$f":"Forsíða!A21","v":"Útgáfa: 5.03"},{"$f":"+Forsíða!D13","v":"Dags.:"},{"$f":"+Forsíða!E13","v":"00:00:00"}]
["Uppskipting og lýsing",null,null,null,null,"Stærðir"]
["D0","D1","D2","D3","D4","D5","D5M","D6","D7","D8","D9","D10a","D10b","D11","D12","D13","D14","D15","D16","Alrými","Stofur","Svefn-herbergi","Eldhús","Önnur herbergi","Geymslur","Þvottahús","Bað-herbergi","Snyrtingar","Aðrir fletir"]
["Lokun\n","Rými\nhæð-röð","Notkun\ntexti","Höfuð-\nflokkun","Eignar-\nhald","Botnflötur\nm²","Milliflötur\nm²","Stigar\nm²","Op\nm²","Brúttóflötur\nm²","Brúttóflötur\nsh < 1,8","Salarhæð\nmin","Salarhæð\nmax","Brúttó\nrúmmál m³","Nettóflötur\nm²","Birt flatarmál\nm²","Reiknitala\nskiptarúmmáls","Skipta-\nrúmmál m³","Upphitað rými","Fjöldi","Fjöldi","Fjöldi","Fjöldi","Fjöldi","Fjöldi","Fjöldi","Fjöldi","Fjöldi","Fjöldi"]

{"sheet":"Sameign_sumra","index":4,"n_rows":6,"n_cols":10,"rows_kept":6,"cut":false,"hidden":false,"merged":[]}
[null,{"$f":"+Forsíða!D6","v":"Skráningartafla:"},{"$f":"Forsíða!E6","v":0},null,null,null,{"$f":"+Forsíða!D11","v":"Skrásetjari:"},{"$f":"+Forsíða!E11","v":0},null,{"$f":"IF( Breytingarsaga!A2=\"\",IF(Breytingarsaga!A3=\"\",\"\",\"Breytingar\"),\"Breytingar\")","v":""}]
[null,{"$f":"+Forsíða!D8","v":"Landeignanúmer:"},{"$f":"Forsíða!E8","v":0},null,null,null,{"$f":"+Forsíða!D12","v":"Kennitala:"},{"$f":"+Forsíða!E12","v":0}]
[null,{"$f":"+Forsíða!D9","v":"Matshlutanúmer:"},{"$f":"Forsíða!E9","v":0},null,null,{"$f":"Forsíða!A21","v":"Útgáfa: 5.03"},{"$f":"+Forsíða!D13","v":"Dags.:"},{"$f":"+Forsíða!E13","v":"00:00:00"}]
["Sameignir sumra"]
[]
[null,"Eignar-\nhald","Notkun\ntexti","Y-\neignarhald","Notkun\ntexti","Reikni-\nregla","\nEignarhlutur"]

{"sheet":"Eignarhald","index":5,"n_rows":6,"n_cols":10,"rows_kept":6,"cut":false,"hidden":false,"merged":[]}
[null,{"$f":"+Forsíða!D6","v":"Skráningartafla:"},{"$f":"Forsíða!E6","v":0},null,null,null,{"$f":"+Forsíða!D11","v":"Skrásetjari:"},{"$f":"+Forsíða!E11","v":0},null,{"$f":"IF( Breytingarsaga!A2=\"\",IF(Breytingarsaga!A3=\"\",\"\",\"Breytingar\"),\"Breytingar\")","v":""}]
[null,{"$f":"+Forsíða!D8","v":"Landeignanúmer:"},{"$f":"Forsíða!E8","v":0},null,null,null,{"$f":"+Forsíða!D12","v":"Kennitala:"},{"$f":"+Forsíða!E12","v":0}]
[null,{"$f":"+Forsíða!D9","v":"Matshlutanúmer:"},{"$f":"Forsíða!E9","v":0},null,null,{"$f":"Forsíða!A21","v":"Útgáfa: 5.03"},{"$f":"+Forsíða!D13","v":"Dags.:"},{"$f":"+Forsíða!E13","v":"00:00:00"}]
["Eignarhald"]
[null,null,null,null,"S k i p t a r ú m m á l"]
["Fasteignanr.","Eignar-\nhald","Notkun\ntexti","Birt flatarmál\nm²","Séreign\nm³ án sameignar","Séreign og \nsameign m³"]

{"sheet":"Samantekt","index":6,"n_rows":6,"n_cols":18,"rows_kept":6,"cut":false,"hidden":false,"merged":[]}
[null,{"$f":"+Forsíða!D6","v":"Skráningartafla:"},{"$f":"Forsíða!E6","v":0},null,null,null,{"$f":"+Forsíða!D11","v":"Skrásetjari:"},{"$f":"+Forsíða!E11","v":0},null,{"$f":"IF( Breytingarsaga!A2=\"\",IF(Breytingarsaga!A3=\"\",\"\",\"Breytingar\"),\"Breytingar\")","v":""}]
[null,{"$f":"+Forsíða!D8","v":"Landeignanúmer:"},{"$f":"Forsíða!E8","v":0},null,null,null,{"$f":"+Forsíða!D12","v":"Kennitala:"},{"$f":"+Forsíða!E12","v":0}]
[null,{"$f":"+Forsíða!D9","v":"Matshlutanúmer:"},{"$f":"Forsíða!E9","v":0},null,null,{"$f":"Forsíða!A21","v":"Útgáfa: 5.03"},{"$f":"+Forsíða!D13","v":"Dags.:"},{"$f":"+Forsíða!E13","v":"00:00:00"}]
["Uppskipting og lýsing",null,null,null,null,"Stærðir"]
["D0","D1","D2","D3","D4","D5","D5M","D6","D7","D8","D9","D10a","D10b","D11","D12","D13","D14","D15"]
["Lokun\n","Rými\nhæð-röð","Notkun\ntexti","Höfuð-\nflokkun","Eignar-\nhald","Botnflötur\nm²","Milliflötur\nm²","Stigar\nm²","Op\nm²","Brúttóflötur\nm²","Brúttóflötur\nsh < 1,8","Salarhæð\nmin","Salarhæð\nmax","Brúttó\nrúmmál m³","Nettóflötur\nm²","Birt flatarmál\nm²","Reiknitala\nskiptarúmmáls","Skipta-\nrúmmál m³"]

{"sheet":"Athugasemdir","index":7,"n_rows":6,"n_cols":10,"rows_kept":6,"cut":false,"hidden":false,"merged":[]}
[null,{"$f":"+Forsíða!D6","v":"Skráningartafla:"},{"$f":"Forsíða!E6","v":0},null,null,null,{"$f":"+Forsíða!D11","v":"Skrásetjari:"},{"$f":"+Forsíða!E11","v":0},null,{"$f":"IF( Breytingarsaga!A2=\"\",IF(Breytingarsaga!A3=\"\",\"\",\"Breytingar\"),\"Breytingar\")","v":""}]
[null,{"$f":"+Forsíða!D8","v":"Landeignanúmer:"},{"$f":"Forsíða!E8","v":0},null,null,null,{"$f":"+Forsíða!D12","v":"Kennitala:"},{"$f":"+Forsíða!E12","v":0}]
[null,{"$f":"+Forsíða!D9","v":"Matshlutanúmer:"},{"$f":"Forsíða!E9","v":0},null,null,{"$f":"Forsíða!A21","v":"Útgáfa: 5.03"},{"$f":"+Forsíða!D13","v":"Dags.:"},{"$f":"+Forsíða!E13","v":"00:00:00"}]
["Athugasemdir"]
[]
["Athugasemdir"]

{"sheet":"Hlutfallstölur","index":8,"n_rows":7,"n_cols":9,"rows_kept":7,"cut":false,"hidden":false,"merged":[]}
[null,null,null,null,null,null,null,"Ath að það þarf að láta reikna ef gögnum hefur verið breytt frá því að síðast var reiknað svo þær breytingar skili sér örugglega hingað"]
[null,"Mhl","Rúmmál m³","Hlutfall % í lóð","Hús","Hlutfall í húsi %"]
[]
[]
["Eignarhald"]
[null,null,null,null,"S k i p t a r ú m m á l"]
["Fasteignanr.","Eignar-\nhald","Notkun\ntexti","Birt flatarmál\nm²","Séreign\nm³ án sameignar","Séreign og \nsameign m³","Hlutfall í mhl %","Hlutfall í lóð %","Hlutfall í húsi %"]

{"sheet":"Hlutfall_hita","index":9,"n_rows":0,"n_cols":0,"rows_kept":0,"cut":false,"hidden":false,"merged":[]}

{"sheet":"Lýsing","index":10,"n_rows":6,"n_cols":10,"rows_kept":6,"cut":false,"hidden":false,"merged":[]}
[]
[]
[]
[]
[]
[null,"Fasteigna númer","Eignarhaldsnúmer","Eigninni tilheyrir","Notkun\ntexti","Birt flatarmál\nm²","Hlutfall í mhl %","Hlutfall í lóð %","Hlutfall í húsi %","Hlutfall í sameign sumra %"]

{"sheet":"Breytingarsaga","index":11,"n_rows":1,"n_cols":3,"rows_kept":1,"cut":false,"hidden":false,"merged":[]}
["Dags","Breytt af","Hverju var breytt"]

{"sheet":"Stillingar","index":12,"n_rows":10,"n_cols":4,"rows_kept":10,"cut":false,"hidden":true,"merged":[]}
["Forsíða",null,"Þessi síða er eingöngu fyrir Fasteignamat ríkisins"]
["Matshluti"]
["Hæðir",null,7]
["Einingar",null,259]
["Sameign_sumra",null,74]
["Eignarhald",null,95]
["Samantekt",null,208,390]
["Athugasemdir",null,0]
["Stillingar"]
["Hlutfallstölur"]